bitfinex/quotes_ETHUSD_20250622
["timestamp","ask_amount","ask_price","bid_price","bid_amount"]
[1750608688235,11.7745,2187.7,2186.9,10.0]
[1750608688435,0.55,2187.6,2186.9,10.0]
[1750608688737,0.55,2187.6,2186.6,2.46038403]
[1750608688738,0.55,2187.4,2186.6,2.46038403]
[1750608689053,0.55,2187.6,2186.6,2.46038403]
[1750608689365,0.55,2187.4,2186.6,10.46230782]
[1750608690574,0.8235,2187.5,2186.7,0.04572833]
[1750608690777,10.949,2187.4,2186.9,10.0]
[1750608691076,8.426,2187.6,2187.2,10.0]
[1750608691875,10.989,2188.9,2187.6,0.7874]
[1750608692078,0.7898,2188.4,2187.9,10.0]
[1750608692284,0.7898,2188.4,2187.6,10.0]
[1750608692478,0.7898,2188.4,2187.3,0.7874]
[1750608692647,0.7898,2188.4,2187.3,11.85964324]
[1750608692848,0.55,2188.3,2187.4,0.04571009]
[1750608693061,0.7898,2188.0,2187.3,11.07224324]
[1750608693261,8.425,2187.9,2187.3,10.0]
[1750608693459,8.425,2187.9,2187.0,10.0]
[1750608693646,0.7898,2187.7,2187.0,10.0]
[1750608694050,0.55,2187.6,2186.6,11.18474027]
[1750608694253,0.55,2187.4,2186.6,10.39734027]
[1750608694454,10.946,2187.3,2186.7,10.0]
[1750608694950,0.55,2187.0,2186.3,9.93503245]
[1750608695584,0.55,2187.0,2186.0,0.7874]
[1750608695585,0.55,2187.2,2186.0,10.72243245]
[1750608695886,0.7898,2186.9,2186.0,9.93503245]
[1750608696088,0.55,2186.8,2185.8,9.93503245]
[1750608696250,0.55,2186.6,2185.8,11.00727569]
[1750608696452,8.422,2186.5,2185.9,10.0]
[1750608696649,0.7613,2186.3,2185.8,9.93503245]
[1750608697293,0.7613,2186.3,2185.9,10.0]
[1750608697891,0.7613,2186.3,2186.2,10.0]
[1750608698080,8.421,2186.3,2186.2,10.0]
[1750608698689,8.421,2186.3,2185.9,10.0]
[1750608699390,0.7613,2186.2,2185.9,10.0]
[1750608699801,0.7613,2186.2,2185.5,9.93503245]
[1750608700120,0.7613,2186.2,2185.6,10.0]
[1750608701784,0.55,2186.1,2185.6,10.0]
[1750608702401,0.55,2186.1,2185.5,10.0]
[1750608702728,1.3113,2186.2,2185.2,9.93503245]
[1750608703029,0.7613,2186.1,2185.0,9.93503245]
[1750608703226,0.7613,2186.1,2185.0,10.9285357]
[1750608703391,0.55,2186.0,2185.0,9.93503245]
[1750608703597,0.55,2185.7,2185.0,9.93503245]
[1750608703797,8.419,2185.6,2185.1,10.0]
[1750608705434,0.7613,2185.4,2184.4,10.73403245]
[1750608705595,3.062,2185.3,2184.4,11.03088461]
[1750608706245,0.55,2185.1,2184.4,9.93503245]
[1750608706449,0.55,2185.1,2184.2,1.0234891]
[1750608706450,0.55,2184.9,2184.2,0.67429944]
[1750608706644,8.419,2185.0,2184.2,0.2244891]
[1750608706645,0.55,2184.7,2184.2,0.2244891]
[1750608706946,2.512,2184.6,2184.2,0.2244891]
[1750608707836,1.3113,2184.5,2184.2,0.2244891]
[1750608708050,0.55,2184.3,2184.2,0.2244891]
[1750608708340,1.3113,2184.3,2184.2,0.2244891]
[1750608708538,19.415,2184.4,2183.2,0.45079355]
[1750608708863,0.55,2183.7,2182.7,9.93503245]
[1750608709061,0.55,2183.5,2182.7,1.16776445]
[1750608709255,0.55,2183.3,2182.5,10.0]
[1750608709550,0.7691,2183.2,2182.4,9.93503245]
[1750608709846,0.55,2183.1,2182.4,9.93503245]
[1750608710053,0.7691,2183.2,2182.8,10.0]
[1750608710212,8.417,2184.0,2183.4,4.57993635]
[1750608710401,0.7691,2184.3,2184.2,10.0]
[1750608710745,9.1861,2184.3,2183.5,0.45799363]
[1750608710947,9.1861,2184.3,2183.3,10.0]
[1750608711101,0.7691,2184.1,2183.3,10.0]
[1750608711302,0.55,2183.9,2182.9,9.93503245]
[1750608711497,0.55,2183.7,2182.9,9.93503245]
[1750608711733,0.55,2183.5,2182.6,9.93503245]
[1750608711938,0.55,2183.3,2182.7,0.99350325]
[1750608712299,0.55,2183.3,2182.7,10.99350325]
[1750608712742,0.7691,2183.4,2183.0,10.0]
[1750608712937,8.418,2183.4,2183.2,9.93503245]
[1750608713123,9.1871,2183.4,2183.0,9.93503245]
[1750608713501,9.1871,2183.4,2182.8,10.0]
[1750608713916,8.417,2183.3,2182.8,10.0]
[1750608714210,0.7691,2183.4,2183.1,10.0]
[1750608714410,8.417,2183.3,2183.1,10.0]
[1750608714608,8.417,2183.3,2182.8,1.99350325]
[1750608714822,8.417,2183.3,2182.7,9.93503245]
[1750608715863,8.417,2183.3,2182.7,19.93503245]
[1750608716057,0.55,2183.7,2183.1,10.0]
[1750608716242,8.417,2183.8,2183.4,10.0]
[1750608717355,8.417,2183.8,2183.1,10.0]
[1750608717854,3.3407,2184.1,2183.4,10.0]
[1750608718057,0.8267,2184.1,2183.7,10.0]
[1750608718361,8.417,2184.0,2183.9,19.93503245]
[1750608718872,8.417,2184.0,2183.9,10.0]
[1750608719556,0.7804,2184.4,2183.9,9.93503245]
[1750608719752,8.416,2184.3,2184.0,10.0]
[1750608720174,8.415,2184.2,2184.0,10.0]
[1750608720332,8.415,2184.2,2183.7,10.0]
[1750608720843,8.415,2184.2,2183.4,10.0]
[1750608721164,8.415,2184.1,2183.6,10.0]
[1750608721326,0.7804,2184.0,2183.3,10.39090818]
[1750608721527,0.7804,2184.0,2183.1,11.71203871]
[1750608721879,0.7804,2184.0,2183.7,10.0]
[1750608722161,1.88658029,2184.6,2184.0,10.0]
[1750608722162,2.69308029,2184.6,2184.0,10.0]
[1750608722372,8.414,2184.5,2184.4,10.0]
[1750608722874,8.414,2184.5,2184.1,10.0]
[1750608724980,0.8065,2184.6,2184.1,10.0]
[1750608725286,8.412,2184.5,2184.1,10.0]
[1750608728042,0.8198,2185.0,2184.4,10.0]
[1750608728264,8.409,2184.9,2184.4,9.93503245]
[1750608728669,8.409,2184.9,2184.5,10.0]
[1750608728871,3.3188,2184.8,2183.7,1.26364523]
[1750608729043,0.55,2184.6,2183.7,0.44984523]
[1750608729251,0.8198,2184.5,2183.7,1.03848777]
[1750608729451,0.55,2184.2,2183.4,0.8138]
[1750608729686,2.499,2184.8,2183.2,2.73631946]
[1750608729687,1.3698,2184.0,2183.2,2.73631946]
[1750608729871,0.55,2183.8,2183.2,2.73631946]
[1750608730073,0.8198,2183.6,2183.2,2.73631946]
[1750608730278,0.8198,2183.6,2183.3,10.0]
[1750608730582,0.8198,2183.6,2183.2,2.73631946]
[1750608730583,0.55,2183.5,2183.2,2.73631946]
[1750608730805,0.8198,2183.6,2183.2,2.73631946]
[1750608730952,0.8198,2183.6,2183.3,10.0]
[1750608731345,8.406,2183.5,2183.3,10.0]
[1750608732071,8.406,2183.5,2183.2,2.73631946]
[1750608732380,8.406,2183.5,2183.3,10.0]
[1750608732586,0.55,2183.4,2183.2,2.73631946]
[1750608732792,0.55,2183.4,2182.7,9.93503245]
[1750608733003,0.55,2183.4,2182.8,10.0]
[1750608733155,0.55,2183.2,2182.4,9.93503245]
[1750608733855,2.499,2183.1,2182.4,10.40277881]
[1750608734066,0.8198,2183.3,2183.1,10.0]
[1750608734273,8.405,2183.2,2183.1,10.0]
[1750608734479,8.405,2183.2,2182.7,9.93503245]
[1750608734652,8.405,2183.2,2182.8,10.0]
[1750608734857,0.8198,2183.3,2182.5,10.0]
[1750608735056,8.405,2183.2,2182.8,10.0]
[1750608735256,8.405,2183.2,2182.5,10.0]
[1750608735886,8.405,2183.2,2182.8,10.0]
[1750608737090,0.8198,2183.3,2183.0,9.93503245]
[1750608737404,8.404,2183.2,2183.1,10.0]
[1750608738553,0.8201,2183.7,2183.1,10.0]
[1750608738756,8.404,2183.6,2183.1,10.0]
[1750608738960,8.404,2183.6,2182.7,9.93503245]
[1750608739289,0.55,2183.5,2182.8,10.0]
[1750608739651,0.8201,2183.4,2182.8,10.0]
[1750608740765,0.55,2183.3,2182.8,10.0]
[1750608741893,0.55,2182.9,2182.1,0.2244891]
[1750608742093,8.402,2182.8,2182.4,9.93503245]
[1750608742293,0.8083,2183.0,2182.5,10.0]
[1750608742596,8.402,2182.9,2182.8,10.0]
[1750608743269,8.402,2182.9,2182.5,10.0]
[1750608743597,8.402,2182.9,2182.4,0.45679317]
[1750608743894,8.402,2182.9,2182.2,10.0]
[1750608744269,8.402,2182.9,2182.3,9.93503245]
[1750608744474,8.402,2182.9,2182.4,10.0]
[1750608744997,0.55,2182.8,2182.1,10.2244891]
[1750608745161,10.902,2182.9,2182.1,10.2244891]
[1750608746087,0.8083,2183.0,2182.6,9.93503245]
[1750608746378,8.401,2183.0,2182.7,10.0]
[1750608746892,0.55,2182.9,2182.4,10.0]
[1750608747096,0.8011,2182.8,2182.1,10.6889385]
[1750608747392,0.55,2182.7,2182.1,10.2244891]
[1750608747564,0.8282,2182.6,2182.1,0.2244891]
[1750608747759,0.55,2182.5,2182.1,0.2244891]
[1750608747977,1.3782,2182.2,2182.1,0.2244891]
[1750608748194,0.8282,2182.2,2182.1,0.2244891]
[1750608748409,9.2282,2182.2,2182.1,0.2244891]
[1750608749293,8.399,2182.6,2182.1,10.2244891]
[1750608749494,0.8282,2182.9,2182.7,10.0]
[1750608749674,9.2272,2182.9,2182.7,10.0]
[1750608749873,9.2272,2182.9,2182.4,10.0]
[1750608750102,9.2272,2182.9,2182.2,12.47424036]
[1750608750459,9.2272,2182.9,2182.4,10.0]
[1750608750866,0.69338969,2182.8,2182.1,10.2244891]
[1750608751165,0.55,2182.8,2182.1,10.2244891]
[1750608751665,0.14339273,2182.7,2182.1,10.2244891]
[1750608751895,0.55,2182.8,2182.1,0.2244891]
[1750608753396,0.8282,2182.9,2182.1,10.15952155]
[1750608753601,8.398,2182.8,2182.1,0.2244891]
[1750608753800,0.7661,2182.7,2182.1,0.2244891]
[1750608754007,0.55,2182.6,2182.1,0.2244891]
[1750608754305,3.051,2182.6,2182.1,0.2244891]
[1750608754509,0.55,2182.4,2182.1,0.2244891]
[1750608754999,0.55,2182.3,2182.1,0.2244891]
[1750608758539,0.55,2181.7,2179.9,1.0157891]
[1750608758688,0.55,2181.4,2180.1,9.93503245]
[1750608759028,0.55,2181.0,2179.9,0.2244891]
[1750608759346,0.55,2180.6,2179.9,0.2244891]
[1750608759524,0.55,2180.4,2179.9,0.2244891]
[1750608759706,0.55,2180.2,2179.9,0.2244891]
[1750608760018,10.883,2180.3,2179.9,0.2244891]
[1750608760425,0.55,2180.2,2179.9,0.2244891]
[1750608760631,10.883,2180.3,2179.9,0.2244891]
[1750608760844,0.8284,2181.2,2180.2,10.0]
[1750608761135,10.883,2181.1,2180.3,1.99350325]
[1750608761436,0.8284,2181.0,2180.1,10.0]
[1750608761619,0.55,2180.9,2180.1,10.0]
[1750608762626,0.8284,2181.0,2180.4,10.0]
[1750608762843,8.396,2180.8,2180.4,9.93503245]
[1750608763440,0.8284,2181.0,2180.4,9.93503245]
[1750608763726,0.8284,2181.0,2180.4,11.0100557]
[1750608763891,8.395,2180.9,2180.4,11.0100557]
[1750608764092,8.395,2180.9,2180.4,9.93503245]
[1750608765345,8.395,2180.9,2180.5,10.0]
[1750608765896,8.395,2180.9,2180.2,0.8152]
[1750608766309,0.8284,2181.0,2180.2,10.8152]
[1750608766537,8.396,2180.8,2180.2,10.8152]
[1750608767096,0.8284,2181.0,2180.2,10.8152]
[1750608767301,0.8187,2181.3,2180.7,9.93503245]
[1750608767530,8.395,2181.0,2180.7,9.93503245]
[1750608768207,2.489,2181.6,2180.8,10.04585036]
[1750608768409,8.395,2181.3,2180.7,10.75023245]
[1750608768592,0.8187,2181.2,2179.9,0.2244891]
[1750608768792,0.55,2181.1,2179.9,10.15952155]
[1750608768997,2.489,2181.0,2180.0,1.09747216]
[1750608769198,0.55,2180.9,2179.9,10.15952155]
[1750608769392,0.8187,2180.8,2179.9,10.15952155]
[1750608769614,0.8187,2180.8,2180.0,10.0]
[1750608769937,10.884,2180.7,2180.0,10.0]
[1750608770415,10.884,2180.7,2180.0,9.59803843]
[1750608770800,10.883,2180.6,2179.9,10.15952155]
[1750608771500,0.8187,2180.8,2179.9,11.25699371]
[1750608771694,8.394,2180.5,2179.9,11.25699371]
[1750608772110,0.8187,2180.8,2179.9,11.25699371]
[1750608772353,8.395,2180.4,2180.0,10.0]
[1750608773338,0.8187,2180.8,2180.3,10.0]
[1750608773506,14.2659,2181.1,2180.7,10.0]
[1750608773703,8.394,2181.0,2180.3,10.0]
[1750608773936,0.55,2180.7,2179.9,0.2244891]
[1750608774106,0.14354951,2180.6,2179.9,0.2244891]
[1750608774438,2.63255076,2180.5,2179.9,0.2244891]
[1750608774615,8.394,2180.4,2179.9,0.2244891]
[1750608775338,0.7579,2180.3,2179.9,0.2244891]
[1750608775541,10.883,2180.2,2179.9,0.2244891]
[1750608776037,0.55,2180.7,2180.0,10.0]
[1750608776038,2.489,2180.6,2180.0,10.0]
[1750608776249,8.53754695,2180.5,2180.0,10.0]
[1750608776407,8.394,2180.5,2180.0,10.0]
[1750608776748,8.394,2180.5,2179.9,0.2244891]
[1750608777108,0.14355868,2180.4,2179.9,0.2244891]
[1750608777308,8.394,2180.5,2179.9,0.2244891]
[1750608777543,0.7883,2180.3,2179.9,0.2244891]
[1750608777917,0.14356659,2180.2,2179.9,0.2244891]
[1750608778245,0.55,2180.2,2179.9,0.2244891]
[1750608778453,0.55,2180.0,2179.9,0.2244891]
[1750608778609,0.93187701,2180.1,2179.9,0.2244891]
[1750608778610,0.7883,2180.1,2179.9,0.2244891]
[1750608778807,0.7883,2180.4,2179.9,0.2244891]
[1750608779059,0.7883,2180.2,2179.9,0.2244891]
[1750608779207,0.69357145,2180.1,2179.9,0.2244891]
[1750608779506,0.93187145,2180.0,2179.9,0.2244891]
[1750608779715,11.95389359,2180.0,2179.9,0.2244891]
[1750608779940,11.9538995,2180.0,2179.9,0.2244891]
[1750608780434,0.7883,2179.6,2178.3,0.45182119]
[1750608780643,1.4818995,2179.5,2178.4,9.98093526]
[1750608780811,0.7883,2179.8,2179.0,9.93503245]
[1750608781013,0.7883,2179.8,2178.8,0.8277]
[1750608781014,8.394,2179.7,2178.8,0.8277]
[1750608781230,0.1435924,2179.6,2178.8,0.8277]
[1750608781406,8.394,2179.7,2178.9,0.04588801]
[1750608781610,8.393,2179.6,2179.3,10.0]
[1750608781825,0.8114,2180.9,2179.6,10.0]
[1750608782026,8.53654104,2180.8,2180.2,10.0]
[1750608782309,0.14354104,2180.7,2180.2,10.0]
[1750608782508,8.393,2180.8,2180.2,10.0]
[1750608782710,0.14351891,2180.7,2180.2,10.0]
[1750608782927,8.393,2180.8,2180.3,0.04586274]
[1750608783151,0.14351094,2180.7,2180.2,1.39838781]
[1750608783453,8.393,2180.8,2179.8,20.73213245]
[1750608783751,0.14351617,2180.7,2179.9,10.0]
[1750608784057,8.393,2180.8,2179.9,10.0]
[1750608784223,0.14351725,2180.7,2180.0,2.07321325]
[1750608784410,8.393,2180.8,2180.0,2.07321325]
[1750608784609,0.14351865,2180.7,2180.0,2.07321325]
[1750608784855,0.8114,2180.9,2180.0,2.07321325]
[1750608785052,8.5355183,2180.8,2180.5,10.0]
[1750608785220,0.1435183,2180.7,2180.5,10.0]
[1750608785411,8.392,2180.8,2180.1,19.93503245]
[1750608785612,0.69351474,2180.7,2180.0,0.45104489]
[1750608785932,0.14351474,2180.6,2180.0,0.04586545]
[1750608786241,0.55,2180.7,2180.0,0.04586545]
[1750608786242,0.14352226,2180.5,2180.0,0.46983843]
[1750608789247,0.14354143,2180.1,2179.8,12.12542316]
[1750608789406,0.14354143,2180.0,2179.8,12.12542316]
[1750608789610,8.391,2179.9,2179.8,12.12542316]
[1750608789809,8.53454179,2179.9,2179.8,12.12542316]
[1750608790005,8.391,2179.9,2179.8,12.12542316]
[1750608790238,8.53454065,2179.9,2179.8,12.12542316]
[1750608790562,8.53454507,2179.9,2179.8,10.0]
[1750608791052,0.8134,2180.6,2179.8,10.8041]
[1750608791278,8.53452784,2180.5,2180.3,10.0]
[1750608791443,0.14352784,2180.4,2180.0,10.0]
[1750608791642,0.14352784,2180.3,2180.0,10.0]
[1750608791975,0.14353637,2180.2,2179.8,0.8041]
[1750608792170,0.14353637,2180.1,2180.0,10.0]
[1750608792379,0.14353952,2180.1,2180.0,10.0]
[1750608793237,0.14353952,2180.1,2179.5,11.31397845]
[1750608793437,0.14353952,2180.0,2179.5,10.74023245]
[1750608793680,0.14353952,2179.9,2179.6,0.04587533]
[1750608793880,0.14353952,2179.8,2179.6,10.04587533]
[1750608794082,8.39,2180.2,2179.6,10.0]
[1750608794265,0.14355289,2180.1,2180.0,10.0]
[1750608794471,0.14353808,2180.1,2180.0,10.8052]
[1750608794645,0.14354001,2180.1,2180.0,10.8052]
[1750608794978,0.14354001,2180.1,2180.0,11.27447178]
[1750608795359,0.14353676,2180.1,2180.0,11.27447178]
[1750608795765,0.14353676,2180.1,2180.0,13.3954222]
[1750608795968,0.14353211,2180.1,2180.0,11.27447178]
[1750608796845,8.388,2180.3,2180.0,11.27447178]
[1750608797166,0.158922,2180.7,2180.3,10.0]
[1750608797348,8.53151917,2180.6,2180.3,10.0]
[1750608797549,0.14351917,2180.5,2180.4,0.04585815]
[1750608797745,0.14350435,2180.5,2180.4,10.0]
[1750608798242,0.14350961,2180.5,2180.2,10.0]
[1750608798443,8.546922,2180.7,2180.2,12.57965359]
[1750608798444,0.14351302,2180.4,2180.2,12.57965359]
[1750608798643,8.546922,2180.7,2180.2,12.57965359]
[1750608798848,0.14351357,2180.6,2180.2,12.57965359]
[1750608799049,8.546922,2180.7,2180.2,12.57965359]
[1750608799298,0.14351238,2180.6,2180.2,12.57965359]
[1750608799500,8.546922,2180.7,2180.2,12.57965359]
[1750608799707,0.158922,2180.7,2180.5,0.7576]
[1750608799904,0.158922,2180.7,2180.4,9.93503245]
[1750608799905,3.2647,2181.8,2180.7,10.0]
[1750608800058,8.53047493,2181.7,2181.2,10.0]
[1750608800256,8.53047493,2181.7,2180.6,10.7576]
[1750608800257,0.14347493,2181.6,2180.6,10.7576]
[1750608800478,8.387,2181.7,2180.8,10.0]
[1750608800685,0.14347596,2181.6,2180.9,0.04584446]
[1750608800896,0.14347596,2181.5,2180.8,10.0]
[1750608801054,0.92517596,2181.4,2180.6,0.7576]
[1750608801381,0.14349087,2181.3,2180.6,0.7576]
[1750608801580,0.14349087,2181.2,2180.6,0.7576]
[1750608801763,3.2637,2181.4,2180.6,0.7576]
[1750608801764,0.14349148,2181.1,2180.6,0.7576]
[1750608801969,0.14349148,2181.1,2180.4,9.93503245]
[1750608801970,0.7817,2180.9,2180.3,10.7576]
[1750608802277,8.52849148,2180.8,2180.4,0.04585811]
[1750608802513,8.385,2180.8,2180.4,0.04585811]
[1750608802697,10.867,2180.8,2180.0,1.22687178]
[1750608803000,0.14351262,2180.7,2180.0,10.69263245]
[1750608803306,0.14351262,2180.6,2179.7,10.69263245]
[1750608803606,0.7817,2180.4,2179.8,10.0]
[1750608803783,0.14353969,2180.3,2179.8,10.0]
[1750608803958,0.7817,2180.4,2179.8,10.0]
[1750608804283,0.1435401,2180.3,2179.7,11.76189569]
[1750608804509,0.7817,2180.4,2179.7,12.23123976]
[1750608804816,6.34394226,2182.5,2180.7,0.55]
[1750608805003,0.7817,2182.4,2181.9,10.0]
[1750608805285,0.7817,2182.4,2180.7,0.55]
[1750608805286,10.876,2182.3,2181.3,10.0]
[1750608805476,0.7817,2182.2,2181.2,0.7576]
[1750608805649,0.7817,2182.2,2181.9,0.7817]
[1750608805849,0.7817,2182.2,2181.2,0.7576]
[1750608805850,0.7817,2182.2,2181.6,10.0]
[1750608806057,8.392,2182.1,2181.6,10.0]
[1750608806468,1.15007327,2182.5,2181.9,10.7591]
[1750608806702,8.77092251,2182.4,2181.9,10.7591]
[1750608806881,8.393,2182.3,2181.8,10.0]
[1750608807511,3.2488,2182.5,2182.1,10.0]
[1750608807512,0.7668,2182.5,2182.1,10.0]
[1750608807674,8.388,2182.4,2182.1,10.0]
[1750608808175,11.022,2182.6,2182.2,0.04582371]
[1750608808376,8.384,2182.3,2182.2,0.45026754]
[1750608808717,11.022,2182.6,2182.1,10.0]
[1750608808920,8.382,2182.3,2182.1,10.0]
[1750608809284,8.382,2182.3,2182.2,0.7591]
[1750608809826,0.7668,2182.9,2182.2,0.7591]
[1750608809827,8.382,2182.5,2182.2,0.80492088]
[1750608809991,11.02,2183.5,2182.7,10.0]
[1750608809992,2.482,2183.2,2182.7,10.0]
[1750608810183,8.382,2183.1,2182.7,10.0]
[1750608810371,8.382,2183.1,2182.7,0.44865993]
[1750608810578,8.382,2183.1,2182.2,10.7591]
[1750608811371,0.7668,2183.4,2182.7,9.93503245]
[1750608811571,0.7668,2183.4,2182.8,10.04581066]
[1750608811778,0.7972,2184.1,2183.4,10.0]
[1750608812029,0.23949472,2184.2,2184.0,9.93503245]
[1750608812191,0.7972,2185.3,2184.1,10.04578835]
[1750608812389,2.8632204,2185.2,2184.4,10.0]
[1750608812632,2.8632204,2185.2,2184.1,10.8164]
[1750608812633,8.391,2185.1,2184.1,10.8164]
[1750608812773,0.3812204,2185.2,2184.9,9.93503245]
[1750608813121,0.7972,2185.3,2184.1,12.07514325]
[1750608813122,8.399,2185.1,2184.5,0.8164]
[1750608813269,8.399,2185.1,2184.2,10.0]
[1750608813474,0.7972,2185.3,2184.3,9.93503245]
[1750608813699,10.884,2185.0,2184.1,11.2676321]
[1750608813896,10.884,2185.0,2184.4,1.376195]
[1750608814886,0.7972,2185.3,2184.4,1.376195]
[1750608815127,10.883,2185.2,2184.4,1.376195]
[1750608815331,0.55,2185.1,2184.4,1.376195]
[1750608815507,10.883,2185.2,2184.4,1.376195]
[1750608816083,3.2772,2185.3,2184.7,10.0]
[1750608816280,8.395,2185.2,2184.7,10.0]
[1750608816479,3.2772,2185.3,2184.7,10.0]
[1750608816743,0.2244891,2186.4,2184.7,10.0]
[1750608816744,0.2244891,2186.4,2185.2,9.93503245]
[1750608817021,0.2244891,2186.4,2186.3,10.75143245]
[1750608817328,0.2244891,2186.4,2186.3,20.75143245]
[1750608817503,0.2244891,2186.4,2186.3,10.8164]
[1750608817678,0.2244891,2186.4,2186.3,20.75143245]
[1750608818092,0.2244891,2186.4,2186.3,10.0]
[1750608818529,0.2244891,2186.4,2186.3,19.93503245]
[1750608818712,0.2244891,2186.4,2186.3,20.39581037]
[1750608818917,8.491,2187.2,2186.5,0.8164]
[1750608819082,8.493,2187.1,2186.9,10.0]
[1750608819281,0.8221,2188.2,2186.9,10.0]
[1750608819486,11.026,2188.1,2187.2,10.0]
[1750608819712,11.026,2188.1,2187.3,0.04571323]
[1750608820134,11.018,2188.0,2187.2,10.0]
[1750608820420,11.018,2188.0,2186.5,0.8164]
[1750608820421,11.018,2188.0,2186.9,10.0]
[1750608820591,0.8221,2188.2,2187.2,9.93503245]
[1750608820792,8.484,2188.1,2187.2,9.93503245]
[1750608821107,11.011,2188.4,2187.8,9.93503245]
[1750608821307,8.483,2188.0,2187.9,10.0457004]
[1750608821629,8.483,2188.0,2187.5,0.8149]
[1750608821630,8.483,2188.0,2187.5,10.74993245]
[1750608821796,11.011,2188.4,2187.6,10.0]
[1750608821993,8.48,2188.3,2187.6,10.0]
[1750608822417,8.48,2188.3,2187.3,10.0]
[1750608822619,0.55,2188.3,2187.3,10.46539854]
[1750608822822,0.55,2187.9,2187.3,0.46539854]
[1750608823138,8.47,2187.8,2187.3,10.0]
[1750608823506,8.471,2187.7,2187.3,10.0]
[1750608823729,8.471,2187.6,2187.3,10.45829916]
[1750608824135,2.533,2188.2,2187.6,10.0]
[1750608824340,8.472,2188.0,2187.9,19.93503245]
[1750608824493,8.472,2188.0,2187.9,10.0]
[1750608824895,1.3234,2188.4,2187.9,10.0]
[1750608825100,11.558,2188.3,2187.4,9.93503245]
[1750608825309,0.55,2188.3,2187.5,10.0]
[1750608825637,0.55,2188.1,2187.5,10.0]
[1750608825792,0.55,2188.1,2187.3,0.45829916]
[1750608826126,11.013,2188.2,2186.8,9.93503245]
[1750608826127,0.55,2187.9,2186.8,9.93503245]
[1750608826493,0.55,2187.9,2186.9,10.0]
[1750608826691,0.7734,2188.0,2187.1,9.93503245]
[1750608826692,11.003,2187.8,2187.1,9.93503245]
[1750608827004,0.7734,2188.0,2187.4,9.93503245]
[1750608827209,8.468,2187.9,2187.5,10.0]
[1750608827427,8.468,2187.9,2187.2,10.0]
[1750608827812,0.55,2187.8,2187.1,1.374259]
[1750608828021,0.55,2187.6,2186.8,10.38851666]
[1750608828224,2.532,2187.5,2187.0,1.374549]
[1750608828702,2.532,2187.5,2186.9,10.0]
[1750608829123,8.46,2187.4,2186.9,10.0]
[1750608829819,0.807,2187.7,2186.9,10.0]
[1750608830133,8.458,2187.6,2186.9,10.0]
[1750608830332,8.458,2187.6,2187.0,0.04571747]
[1750608830748,8.458,2187.6,2186.9,10.0]
[1750608831616,0.55,2187.5,2186.8,0.45348421]
[1750608831817,8.435,2187.4,2186.7,0.04572472]
[1750608832052,8.435,2187.4,2186.6,10.0]
[1750608832356,8.435,2187.4,2186.7,0.04572478]
[1750608832659,8.435,2187.4,2186.6,10.0]
[1750608833114,8.435,2187.4,2186.7,0.04572477]
[1750608833321,8.433,2187.3,2187.1,9.93503245]
[1750608833519,8.433,2187.3,2186.9,10.0]
[1750608833520,8.433,2187.3,2186.6,10.46449325]
[1750608835314,1.3609,2187.2,2186.6,0.46449325]
[1750608835534,0.55,2187.0,2186.6,0.46449325]
[1750608835728,0.55,2186.8,2186.6,0.46449325]
[1750608835951,8.969,2186.7,2186.6,0.46449325]
[1750608836327,1.3609,2186.6,2185.7,0.8139]
[1750608836531,10.945,2186.5,2185.9,9.93503245]
[1750608836731,10.945,2186.5,2186.0,10.0]
[1750608836921,0.8109,2186.6,2186.0,10.0]
[1750608837124,10.94,2186.5,2186.0,10.0]
[1750608837336,10.94,2186.5,2185.9,10.38542101]
[1750608837855,10.94,2186.5,2186.0,10.0]
[1750608838022,0.55,2186.4,2185.9,0.45038856]
[1750608838222,0.55,2186.4,2185.6,9.93503245]
[1750608838423,0.55,2186.4,2185.6,0.46527176]
[1750608838661,0.55,2186.2,2185.2,9.93503245]
[1750608838857,0.55,2186.0,2185.3,10.99350325]
[1750608839155,10.936,2185.9,2185.2,10.0]
[1750608840256,10.936,2185.9,2185.1,11.31055145]
[1750608840257,10.936,2185.9,2185.1,1.375519]
[1750608840457,10.936,2185.9,2185.2,10.0]
[1750608840656,0.55,2185.6,2184.9,0.46069231]
[1750608840959,0.7577,2185.7,2184.5,0.7694]
[1750608840960,2.531,2185.5,2185.2,10.0]
[1750608841268,10.93,2185.5,2184.6,0.7694]
[1750608841471,0.55,2185.4,2184.7,1.14738324]
[1750608841775,0.55,2185.2,2184.6,0.46788742]
[1750608842080,0.55,2185.0,2184.4,10.0]
[1750608842369,10.936,2184.9,2184.4,10.0]
[1750608842605,0.7508,2185.3,2184.6,9.93503245]
[1750608842882,0.55,2185.0,2184.4,0.46610071]
[1750608843039,105.0988,2188.1,2184.6,9.93503245]
[1750608843238,0.7508,2186.3,2185.8,10.0]
[1750608843571,11.239,2186.2,2185.5,10.0]
[1750608843752,11.239,2186.2,2185.0,0.753]
[1750608844059,11.9898,2186.1,2185.5,10.0]
[1750608844224,11.242,2186.0,2185.5,10.0]
[1750608844625,11.242,2186.0,2185.2,10.0]
[1750608844839,11.242,2186.0,2185.3,0.04575504]
[1750608845363,0.7508,2186.1,2185.5,10.0]
[1750608845660,11.237,2185.9,2185.5,10.0]